bitfinex-derivatives/quotes_ETHF0:USTF0_20250702
["timestamp","ask_amount","ask_price","bid_price","bid_amount"]
[1751426438206,25.99496,2424.1,2424.0,3.10566613]
[1751426446608,25.98894,2424.1,2424.0,3.10566613]
[1751426447110,25.98894,2424.1,2424.0,4.42366613]
[1751426448111,25.98894,2424.1,2424.0,8.50025967]
[1751426448308,25.98694,2424.1,2424.0,7.18225967]
[1751426448507,25.162,2424.1,2424.0,8.00720967]
[1751426449214,0.82494,2424.1,2424.0,8.00720967]
[1751426449408,0.82494,2424.1,2424.0,3.93061613]
[1751426449615,0.82494,2424.1,2424.0,3.10566613]
[1751426451911,0.82494,2424.1,2424.0,3.93063613]
[1751426452212,0.82494,2424.1,2424.0,5.31253613]
[1751426452708,0.82494,2424.1,2424.0,4.48756613]
[1751426453817,0.82494,2424.1,2424.0,3.10566613]
[1751426454114,0.82497,2424.0,2423.9,5.70561338]
[1751426454814,0.82497,2424.0,2423.9,8.10927951]
[1751426460315,0.82497,2424.0,2423.9,2.40366613]
[1751426466815,0.82497,2424.0,2423.9,3.22866613]
[1751426467818,0.82497,2424.0,2423.9,8.93427951]
[1751426468221,0.82497,2424.0,2423.9,8.10927951]
[1751426469115,0.82497,2424.0,2423.9,2.40366613]
[1751426472219,1.49837,2424.0,2423.9,2.40366613]
[1751426472416,0.82497,2424.0,2423.9,2.40366613]
[1751426472827,0.82497,2424.0,2423.9,3.22866613]
[1751426473321,0.82497,2424.0,2423.9,8.93427951]
[1751426473717,0.82497,2424.0,2423.9,8.10927951]
[1751426475624,0.82497,2424.0,2423.9,2.40366613]
[1751426482626,0.82497,2424.0,2423.9,8.10927951]
[1751426487031,0.82497,2424.0,2423.9,5.70561338]
[1751426487335,0.82497,2424.0,2423.9,8.10927951]
[1751426497741,0.82497,2424.0,2423.9,7.38226168]
[1751426500840,0.82495,2424.1,2424.0,0.82496]
[1751426501041,0.825,2423.9,2423.8,0.82502]
[1751426501237,0.82497,2424.0,2423.9,5.71814183]
[1751426501434,0.82497,2424.0,2423.9,8.21979013]
[1751426505147,0.82497,2424.0,2423.9,7.39479013]
[1751426511855,0.82497,2424.0,2423.9,8.21979013]
[1751426512059,25.12,2424.1,2424.0,0.82497]
[1751426512250,0.82494,2424.1,2424.0,2.81875]
[1751426512450,0.82494,2424.1,2424.0,3.54135]
[1751426512655,25.94393,2424.2,2424.1,0.82494]
[1751426512853,25.94393,2424.2,2424.1,2.5015883]
[1751426513055,25.94393,2424.2,2424.1,1.6766483]
[1751426516564,25.94393,2424.2,2423.9,5.71814183]
[1751426516565,0.82497,2424.0,2423.9,5.71814183]
[1751426532875,0.82497,2424.0,2423.9,6.54314183]
[1751426533073,1.358,2424.3,2423.9,7.97562183]
[1751426533373,25.9289,2424.2,2424.1,1.6766483]
[1751426533575,0.8249,2424.2,2424.1,1.6766483]
[1751426533774,0.8249,2424.2,2424.1,2.4039483]
[1751426534589,0.8249,2424.2,2424.1,3.2288883]
[1751426535579,0.8249,2424.2,2424.1,2.4039483]
[1751426538679,0.82497,2424.0,2423.9,7.39479013]
[1751426539781,0.82497,2424.0,2423.9,8.80759013]
[1751426540279,0.82497,2424.0,2423.9,3.0894483]
[1751426541679,0.82497,2424.0,2423.9,3.9144483]
[1751426543880,0.82497,2424.0,2423.9,2.2378]
[1751426544082,0.82497,2424.0,2423.9,3.9144483]
[1751426544980,0.82496,2424.1,2424.0,0.82497]
[1751426545172,0.8249,2424.2,2424.1,0.6958]
[1751426545378,0.8249,2424.2,2424.1,3.7570483]
[1751426545577,0.82489,2424.3,2424.1,4.5819883]
[1751426545778,0.82489,2424.3,2424.2,1.4264]
[1751426546386,0.82489,2424.3,2424.2,5.50639568]
[1751426546682,0.82489,2424.3,2424.2,2.2513]
[1751426546986,11.67,2425.8,2424.2,11.85241844]
[1751426547179,0.82446,2425.5,2425.4,1.6766483]
[1751426547380,2.8053,2425.7,2425.4,1.6766483]
[1751426547579,11.67,2426.7,2425.6,1.6766483]
[1751426547784,0.82412,2426.5,2426.4,1.6766483]
[1751426547980,2.46962332,2427.4,2426.4,8.4832415]
[1751426548183,2.4662359,2428.3,2427.2,1.6766483]
[1751426548385,0.7108,2428.6,2427.3,1.4264]
[1751426548386,0.82381,2427.4,2427.3,1.4264]
[1751426548583,0.82381,2427.4,2427.3,5.42902811]
[1751426548787,0.82398,2426.9,2426.7,7.10567641]
[1751426548985,1.6766483,2427.2,2426.6,1.3163]
[1751426549284,2.5006183,2427.0,2426.7,45.70830446]
[1751426549480,0.82394,2427.1,2426.8,3.23165616]
[1751426549677,26.9586483,2427.5,2427.0,2.41587143]
[1751426549875,2.1076,2427.7,2426.9,4.80496894]
[1751426550085,0.82381,2427.4,2427.1,2.38909751]
[1751426550286,25.282,2427.5,2427.1,2.38909751]
[1751426550484,25.282,2427.5,2427.0,1.3163]
[1751426550485,27.67109751,2427.5,2427.0,1.3163]
[1751426550789,0.82391,2427.2,2427.0,1.3163]
[1751426550989,27.67109751,2427.5,2427.0,1.3163]
[1751426550990,0.82392,2427.1,2427.0,1.3163]
[1751426551186,0.82402,2426.8,2426.7,40.8]
[1751426551389,0.82399,2426.9,2426.7,40.8]
[1751426551588,0.82399,2426.9,2426.7,44.58119751]
[1751426551789,0.82398,2427.0,2426.7,44.58119751]
[1751426552180,0.824,2426.9,2426.7,44.58119751]
[1751426552386,25.288,2427.2,2426.7,44.58119751]
[1751426552586,0.82402,2426.9,2426.7,44.58119751]
[1751426552788,0.82402,2426.8,2426.7,40.8]
[1751426553291,1.4193,2427.1,2426.5,0.6578]
[1751426553494,0.82403,2426.8,2426.5,2.0499]
[1751426553783,0.82406,2426.7,2426.5,42.8499]
[1751426553990,2.38909751,2427.0,2426.5,45.23899751]
[1751426554185,1.4193,2427.1,2426.5,45.23899751]
[1751426554388,0.82404,2426.8,2426.5,45.23899751]
[1751426554989,0.82405,2426.7,2426.5,45.23899751]
[1751426555680,1.4193,2427.1,2426.5,45.23899751]
[1751426555884,0.82407,2426.7,2426.5,45.23899751]
[1751426556293,0.82409,2426.6,2426.5,41.4578]
[1751426556794,0.82407,2426.7,2426.5,41.4578]
[1751426557089,0.82409,2426.6,2426.5,41.4578]
[1751426558688,0.82404,2426.8,2426.5,42.2819]
[1751426558991,0.82404,2426.8,2426.7,2.38909751]
[1751426559990,0.692,2427.3,2426.7,2.38909751]
[1751426560288,0.82385,2427.3,2427.2,2.38909751]
[1751426561388,0.82376,2427.6,2427.2,2.38909751]
[1751426561593,0.82376,2427.6,2427.5,2.38909751]
[1751426562192,0.82375,2427.6,2427.5,2.38909751]
[1751426563293,2.38909751,2428.1,2427.5,2.38909751]
[1751426563498,39.41409751,2428.1,2427.6,1.4401]
[1751426563790,0.82375,2427.6,2427.5,2.38909751]
[1751426563998,0.82381,2427.5,2427.3,3.21292751]
[1751426564193,0.82381,2427.5,2427.3,4.54572751]
[1751426564399,0.82378,2427.5,2427.3,4.54572751]
[1751426564704,0.82378,2427.5,2427.3,2.15663]
[1751426565000,0.82378,2427.5,2427.4,2.38909751]
[1751426565201,0.82378,2427.5,2427.4,3.72189751]
[1751426565396,0.82377,2427.6,2427.4,4.54570751]
[1751426565597,0.82378,2427.5,2427.4,3.72189751]
[1751426566799,0.82373,2427.7,2427.5,0.82376]
[1751426567001,2.72902,2428.3,2427.6,2.38909751]
[1751426567306,0.82365,2427.9,2427.8,2.38909751]
[1751426568211,0.82363,2428.0,2427.8,3.21277751]
[1751426568414,0.82368,2427.8,2427.7,2.38909751]
[1751426568710,0.82375,2427.6,2427.5,2.38909751]
[1751426568902,2.059,2428.1,2427.5,2.38909751]
[1751426569107,0.82374,2427.7,2427.6,40.8]
[1751426569505,0.82374,2427.7,2427.6,42.2418]
[1751426570711,0.82374,2427.7,2427.6,43.06555]
[1751426570907,0.8237,2427.8,2427.6,43.06555]
[1751426571108,0.8237,2427.8,2427.7,0.82371]
[1751426571307,0.8237,2427.8,2427.7,2.38909751]
[1751426571706,12.4602,2428.5,2427.7,7.38909751]
[1751426571910,0.82365,2427.9,2427.8,0.6897]
[1751426572102,2.05904,2428.0,2427.6,40.8]
[1751426572308,36.992,2428.4,2427.9,2.38909751]
[1751426572509,0.82361,2428.0,2427.9,2.38909751]
[1751426572810,0.82361,2428.0,2427.9,3.83379751]
[1751426573105,0.82368,2427.8,2427.7,2.38909751]
[1751426573613,0.82371,2427.7,2427.6,43.21587143]
[1751426573812,0.82371,2427.7,2427.6,40.8]
[1751426574510,2.05897,2428.1,2427.6,40.8]
[1751426574511,0.8237,2427.8,2427.6,40.8]
[1751426574703,0.8237,2427.8,2427.7,4.79502668]
[1751426574909,0.8237,2427.8,2427.7,2.40592917]
[1751426575310,0.82371,2427.7,2427.6,40.8]
[1751426575511,0.8237,2427.8,2427.6,44.01282751]
[1751426575812,0.82371,2427.7,2427.6,40.8]
[1751426577112,0.82378,2427.5,2427.4,4.90049922]
[1751426577308,0.82378,2427.5,2427.4,6.22699922]
[1751426577615,0.82378,2427.5,2427.4,40.8]
[1751426578217,29.82355921,2427.7,2427.2,5.71314443]
[1751426578416,0.82375,2427.6,2427.5,4.039478]
[1751426579117,0.82378,2427.5,2427.4,4.039478]
[1751426580017,0.82381,2427.4,2427.3,4.039478]
[1751426580217,0.82385,2427.3,2427.2,4.039478]
[1751426581119,0.82379,2427.5,2427.3,0.82382]
[1751426581323,0.82379,2427.5,2427.4,0.82381]
[1751426581515,0.82379,2427.5,2427.4,2.17671]
[1751426581918,0.82379,2427.5,2427.4,1.3529]
[1751426582420,0.82378,2427.5,2427.4,2.17671]
[1751426582619,0.82378,2427.5,2427.4,1.3529]
[1751426583819,0.82381,2427.4,2427.3,4.729078]
[1751426586419,0.82381,2427.4,2427.3,4.039478]
[1751426586614,0.82381,2427.4,2427.1,46.51314443]
[1751426586615,0.82388,2427.2,2427.1,9.75262243]
[1751426586821,0.32972108,2427.2,2427.1,4.039478]
[1751426587218,0.82392,2427.1,2427.0,40.8]
[1751426587524,0.82395,2427.0,2426.9,11.02400364]
[1751426587725,0.82395,2427.0,2426.9,12.44350364]
[1751426587924,0.82395,2427.0,2426.9,53.24350364]
[1751426588226,2.05963,2427.3,2426.9,53.24350364]
[1751426588421,0.82385,2427.3,2427.2,4.04735497]
[1751426588626,11.732,2428.6,2427.3,2.05962]
[1751426588924,1.50201,2428.3,2428.2,2.42690267]
[1751426589628,6.50201,2428.3,2428.2,2.42690267]
[1751426589820,0.82354,2428.2,2428.1,2.42690267]
[1751426590017,27.56474,2428.2,2428.1,2.42690267]
[1751426590221,0.82361,2428.0,2427.9,3.23587023]
[1751426591626,2.27341,2428.0,2427.9,3.23587023]
[1751426592622,0.8237,2427.8,2427.6,4.87108497]
[1751426592819,0.82371,2427.7,2427.6,1.362]
[1751426593021,0.8237,2427.8,2427.6,2.18575]
[1751426593225,0.8237,2427.8,2427.7,4.05120448]
[1751426595418,0.82371,2427.7,2427.6,4.05120448]
[1751426596328,0.82378,2427.5,2427.4,5.71314443]
[1751426596532,0.82381,2427.4,2427.3,7.97189443]
[1751426596730,0.82379,2427.5,2427.4,0.82381]
[1751426596927,0.82381,2427.4,2427.3,7.14804443]
[1751426597428,2.05929,2427.7,2427.3,7.14804443]
[1751426597624,0.82381,2427.4,2427.3,7.14804443]
[1751426598432,2.05929,2427.7,2427.3,7.97189443]
[1751426598731,0.82378,2427.5,2427.4,5.71314443]
[1751426601430,0.82378,2427.5,2427.4,7.09354443]
[1751426603434,0.82378,2427.5,2427.4,1.3804]
[1751426605332,0.82378,2427.5,2427.4,2.20421]
[1751426605533,0.82378,2427.5,2427.4,1.3804]
[1751426606937,0.32967793,2427.5,2427.4,1.3804]
[1751426607345,2.05923,2427.8,2427.4,1.3804]
[1751426607538,0.82371,2427.7,2427.6,5.67754728]
[1751426609448,30.59302035,2427.7,2427.6,5.67754728]
[1751426609947,0.82375,2427.6,2427.5,5.67754728]
[1751426610147,27.3841,2427.7,2427.5,5.67754728]
[1751426610447,0.82375,2427.6,2427.5,5.67754728]
[1751426610650,0.82381,2427.4,2427.3,3.09981035]
[1751426613751,2.38821035,2427.4,2426.8,10.62080662]
[1751426613956,2.38821035,2427.4,2426.3,13.07176199]
[1751426613957,2.38821035,2427.1,2426.4,2.38821035]
[1751426614158,0.82402,2426.8,2426.6,2.38821035]
[1751426614452,0.82405,2426.7,2426.6,3.75621035]
[1751426615054,0.82403,2426.8,2426.6,3.75621035]
[1751426616055,0.824,2426.9,2426.6,4.58029035]
[1751426616358,0.689,2427.3,2426.8,7.27023086]
[1751426616560,25.511,2427.3,2427.0,2.38821035]
[1751426616756,0.82391,2427.2,2427.1,0.6656]
[1751426617555,0.7076,2427.5,2427.1,0.6656]
[1751426617754,0.82388,2427.3,2427.2,5.63365906]
[1751426617953,0.82388,2427.3,2427.2,5.63368245]
[1751426618457,0.82388,2427.3,2427.2,2.38821035]
[1751426620362,0.82388,2427.3,2427.2,5.63403743]
[1751426622259,0.82388,2427.3,2427.2,2.38821035]
[1751426625456,0.82383,2427.4,2427.2,3.21208035]
[1751426625655,0.82385,2427.3,2427.2,3.21208035]
[1751426625856,0.82385,2427.3,2427.2,2.38821035]
[1751426627163,0.82374,2427.7,2427.5,0.82376]
[1751426627459,0.82374,2427.7,2427.6,3.09651035]
[1751426627861,1.3777,2428.1,2427.6,3.09651035]
[1751426628063,26.28364,2428.0,2427.9,2.38821035]
[1751426628255,0.82364,2428.0,2427.9,6.44624086]
[1751426628854,1.3738,2428.2,2427.9,6.44624086]
[1751426629055,0.82361,2428.0,2427.9,6.44624086]
[1751426629260,0.82365,2427.9,2427.8,4.05803051]
[1751426630163,0.82365,2427.9,2427.8,4.04753892]
[1751426630664,0.82363,2428.0,2427.8,7.25942927]
[1751426630858,0.82363,2428.0,2427.9,4.04753892]
[1751426631260,0.82363,2428.0,2427.9,4.87118892]
[1751426631863,26.3026,2428.1,2427.9,4.87118892]
[1751426632060,0.82358,2428.1,2427.9,4.04753892]
[1751426632361,25.471,2428.2,2428.0,3.21181035]
[1751426632862,25.471,2428.2,2428.0,2.38821035]
[1751426633063,0.82358,2428.1,2428.0,3.21182035]
[1751426633266,26.29456,2428.2,2428.0,3.93922035]
[1751426633455,0.82358,2428.1,2428.0,3.93922035]
[1751426633654,1.54143,2428.3,2428.1,0.82355]
[1751426633960,0.82346,2428.5,2428.3,0.8235]
[1751426634155,26.29647,2428.5,2428.3,3.21170035]
[1751426634463,7.22723035,2428.9,2428.6,0.82339]
[1751426634464,0.82334,2428.9,2428.6,0.82339]
[1751426634768,0.82329,2429.0,2428.7,3.21158035]
[1751426634958,0.82334,2428.8,2428.7,2.38821035]
[1751426635262,0.82341,2428.6,2428.5,4.77493892]
[1751426635465,0.82341,2428.6,2428.5,0.7274]
[1751426635865,0.82348,2428.4,2428.3,4.04753892]
[1751426636168,0.82354,2428.3,2428.1,7.11634927]
[1751426636363,0.82354,2428.3,2428.1,7.93991927]
[1751426636961,0.82354,2428.3,2428.1,7.11634927]
[1751426637467,0.82354,2428.3,2428.1,3.89238035]
[1751426637863,0.82354,2428.2,2428.1,3.06881035]
[1751426638365,0.82353,2428.3,2428.1,3.06881035]
[1751426638570,0.82354,2428.2,2428.1,3.06881035]
[1751426639066,0.32960022,2428.2,2428.1,2.38821035]
[1751426639264,0.82354,2428.2,2428.0,6.15143892]
[1751426639459,3.06721035,2428.5,2428.0,0.6854]
[1751426639660,0.82358,2428.1,2428.0,0.6854]
[1751426640666,0.82357,2428.2,2428.0,3.89722035]
[1751426640862,3.06721035,2428.5,2428.1,0.82358]
[1751426641169,0.679,2428.5,2428.4,2.38821035]
[1751426641367,0.82343,2428.6,2428.4,3.21169035]
[1751426641569,0.82343,2428.6,2428.4,2.38821035]
[1751426641869,0.82343,2428.6,2428.5,0.7141]
[1751426642067,0.7031,2428.9,2428.5,0.7141]
[1751426642267,2.0563,2429.2,2428.8,2.38821035]
[1751426642570,0.82327,2429.0,2428.8,3.21153035]
[1751426642769,0.82327,2429.0,2428.9,0.6763]
[1751426643770,0.82327,2429.1,2428.9,1.49961]
[1751426643973,0.82327,2429.0,2428.9,0.6763]
[1751426644168,0.82327,2429.0,2428.9,41.4763]
[1751426645265,0.82327,2429.0,2428.9,0.6763]
[1751426648174,0.82327,2429.0,2428.9,2.0593]
[1751426648881,0.6851,2429.2,2428.9,2.0593]
[1751426649078,0.82326,2429.1,2429.0,2.38821035]
[1751426649371,0.82323,2429.2,2429.0,4.55908035]
[1751426649573,0.82322,2429.2,2429.0,4.55906035]
[1751426649770,12.12297639,2430.6,2429.1,5.29485572]
[1751426649964,2.05759,2429.7,2429.1,5.29485572]
[1751426650171,1.3783,2430.5,2429.0,2.344548]
[1751426650368,2.05734,2430.0,2429.2,5.29146747]
[1751426650674,2.7006,2429.9,2429.3,3.21136035]
[1751426650864,0.82302,2429.8,2429.5,3.21128035]
[1751426651063,0.82301,2429.8,2429.6,0.82304]
[1751426651267,4.38951035,2430.3,2429.8,0.823]
[1751426651473,0.723,2430.2,2429.8,0.823]
[1751426651669,0.82292,2430.1,2429.9,0.82296]
[1751426651869,0.82292,2430.1,2429.8,1.3476]
[1751426652072,0.82292,2430.1,2429.9,0.82295]
[1751426652269,2.05709,2430.3,2429.7,5.39016162]
[1751426652468,2.05709,2430.3,2429.6,1.3966]
[1751426652679,0.82303,2429.7,2429.6,1.3966]
[1751426652976,0.82302,2429.8,2429.6,1.3966]
[1751426653173,5.29922885,2430.5,2429.6,1.3966]
[1751426653379,0.82295,2430.0,2429.8,0.82299]
[1751426653581,0.82295,2430.0,2429.9,1.4265]
[1751426653875,0.823,2429.8,2429.7,0.7117]
[1751426654775,0.823,2429.8,2429.7,2.1382]
[1751426654978,0.82298,2429.9,2429.7,2.1382]
[1751426655273,2.78006,2430.4,2429.8,1.4265]
[1751426655574,0.82297,2429.9,2429.8,1.4265]
[1751426655768,0.723,2430.4,2429.9,5.39623049]
[1751426656069,2.32782639,2430.6,2429.9,5.39623049]
[1751426656070,0.27097639,2430.6,2430.2,4.57622885]
[1751426656277,2.05604,2431.6,2430.5,4.57622885]
[1751426656475,2.4263741,2432.2,2430.5,4.57622885]
[1751426656476,2.4263741,2432.3,2431.5,4.57622885]
[1751426656775,2.05582,2431.8,2431.0,4.57622885]
[1751426656980,0.82266,2430.8,2430.7,1.3153]
[1751426657277,0.82266,2430.8,2430.7,40.8]
[1751426658369,0.82276,2430.5,2430.4,0.6631]
[1751426658568,0.82275,2430.6,2430.4,0.6631]
[1751426658775,2.05641,2431.1,2430.5,40.8]
[1751426659085,0.82273,2430.6,2430.5,40.8]
[1751426661178,0.82287,2430.2,2430.1,6.02922885]
[1751426661374,0.8229,2430.1,2430.0,0.6715]
[1751426661580,0.82297,2429.9,2429.8,0.6651]
[1751426661883,0.82297,2429.9,2429.8,42.8865]
[1751426662274,0.82307,2429.6,2429.5,4.04753892]
[1751426662471,0.8231,2429.5,2429.4,5.41703892]
[1751426662677,0.8231,2429.5,2429.4,6.83843892]
[1751426662986,0.8231,2429.5,2429.4,2.7909]
[1751426663192,0.8231,2429.5,2429.4,43.5909]
[1751426663583,0.8231,2429.5,2429.4,42.1695]
[1751426663782,0.8231,2429.5,2429.4,40.8]
[1751426664182,2.05735,2430.0,2429.4,40.8]
[1751426664383,0.82307,2429.6,2429.5,1.3339]
[1751426664884,3.45636,2430.3,2429.5,1.3339]
[1751426665088,0.82302,2429.8,2429.6,4.57622885]
[1751426665288,0.82302,2429.8,2429.7,1.3339]
[1751426665988,0.823,2429.8,2429.7,2.7592]
[1751426666190,0.82298,2429.9,2429.7,2.7592]
[1751426666389,0.82298,2429.9,2429.8,1.3339]
[1751426666591,0.823,2429.8,2429.7,1.4253]
[1751426666892,0.823,2429.8,2429.7,0.7123]
[1751426667393,0.82307,2429.7,2429.4,41.62314]
[1751426667590,0.82307,2429.7,2429.5,6.00112885]
[1751426667788,0.82307,2429.6,2429.5,6.00112885]
[1751426668691,0.8231,2429.5,2429.4,40.8]
[1751426669992,2.05764,2429.7,2429.1,0.706]
[1751426670290,0.82324,2429.1,2429.0,4.57622885]
[1751426670792,0.82315,2429.4,2429.2,0.82319]
[1751426671183,0.82315,2429.4,2429.3,1.3671]
[1751426671383,1.3769,2429.8,2429.3,1.3671]
[1751426671582,1.3769,2429.8,2429.3,5.94332885]
[1751426671787,0.8231,2429.5,2429.4,0.6892]
[1751426673391,0.8231,2429.5,2429.4,2.0563]
[1751426675397,0.8231,2429.5,2429.4,0.6892]
[1751426676388,2.05759,2429.7,2429.1,6.60062885]
[1751426676697,0.8232,2429.2,2429.1,5.93682885]
[1751426676896,0.8232,2429.2,2429.1,0.685]
[1751426677493,0.82324,2429.1,2429.0,45.37622885]
[1751426677693,0.82324,2429.1,2429.0,40.8]
[1751426678591,1.349,2429.4,2428.8,4.04753892]
[1751426678898,0.82334,2428.8,2428.7,9.30876777]
[1751426679096,0.82337,2428.7,2428.6,4.04753892]
[1751426679504,0.82341,2428.6,2428.5,8.62376777]
[1751426679808,0.82341,2428.6,2428.5,49.42376777]
[1751426680000,0.82339,2428.7,2428.6,0.82341]
[1751426680205,0.82339,2428.7,2428.5,46.19964885]
[1751426680895,0.82339,2428.7,2428.6,0.82341]
[1751426681091,0.7181,2429.1,2428.6,0.82339]
[1751426681302,0.82336,2428.8,2428.6,0.82339]
[1751426681602,0.82341,2428.6,2428.5,45.37622885]
[1751426682797,0.82339,2428.7,2428.5,45.37622885]
[1751426682997,0.82339,2428.7,2428.5,46.19964885]
[1751426683300,0.82341,2428.6,2428.5,45.37622885]
[1751426684201,0.82341,2428.6,2428.5,46.19966885]
[1751426684391,0.82344,2428.5,2428.4,4.04753892]
[1751426685098,0.82344,2428.5,2428.4,45.37622885]
[1751426685297,0.82344,2428.5,2428.4,46.19970885]
[1751426685690,0.82344,2428.5,2428.4,45.37622885]
[1751426686102,0.82343,2428.6,2428.4,46.19970885]
[1751426686303,1.50129,2428.7,2428.5,0.82344]
[1751426687104,0.82341,2428.6,2428.5,0.82344]
[1751426687497,1.50129,2428.7,2428.5,0.82344]
[1751426688003,1.50129,2428.7,2428.6,0.82341]
[1751426688303,0.82343,2428.6,2428.4,46.69402885]
[1751426688704,0.82343,2428.6,2428.5,0.82344]
[1751426689004,1.50129,2428.7,2428.5,0.82344]
[1751426689399,0.82339,2428.7,2428.6,0.82341]
[1751426689603,0.82341,2428.6,2428.5,0.82343]
[1751426691197,0.82341,2428.6,2428.4,41.62346]
[1751426691406,0.82341,2428.6,2428.5,0.82344]
[1751426691702,0.82344,2428.5,2428.4,40.8]
[1751426692312,0.82344,2428.5,2428.4,41.62347]
[1751426692503,1.4533,2428.8,2428.4,41.62347]
[1751426692708,0.82344,2428.5,2428.4,40.8]
[1751426693811,0.82344,2428.5,2428.4,41.62348]
[1751426695516,0.82344,2428.5,2428.4,40.8]
[1751426697812,0.82348,2428.4,2428.3,0.6612]
[1751426698209,0.82348,2428.4,2428.3,41.4612]
[1751426699016,0.82348,2428.4,2428.3,42.28471]
[1751426700010,0.82348,2428.4,2428.3,41.4612]
[1751426700217,0.82348,2428.4,2428.3,45.50873892]
[1751426701706,2.17278,2428.4,2428.3,4.04753892]
[1751426701913,2.17278,2428.4,2428.0,6.38349997]
[1751426701914,0.82351,2428.3,2428.2,3.77656253]
[1751426702216,0.82361,2428.0,2427.9,8.06533695]
[1751426702416,0.82361,2428.0,2427.9,2.38693698]
[1751426703112,0.82365,2427.9,2427.8,46.47839997]
[1751426703620,0.82365,2427.9,2427.8,40.8]
[1751426704914,0.82368,2427.8,2427.7,5.67839997]
[1751426705311,2.113,2428.1,2427.6,6.11262978]
[1751426705516,0.8237,2427.8,2427.7,40.8]
[1751426706508,0.82378,2427.5,2427.4,13.52037244]
[1751426706713,0.82377,2427.6,2427.4,14.23297244]
[1751426706909,0.82377,2427.6,2427.5,0.82378]
[1751426707115,0.82374,2427.7,2427.5,41.62378]
[1751426707315,0.82375,2427.6,2427.5,41.62378]
[1751426707521,0.82375,2427.6,2427.5,40.8]
[1751426708315,0.82373,2427.7,2427.6,0.82375]
[1751426708521,0.6574,2428.2,2427.6,5.66602524]
[1751426708821,0.82358,2428.1,2428.0,4.58380978]
[1751426709020,0.82367,2427.9,2427.8,0.6776]
[1751426709721,0.82375,2427.6,2427.5,46.46602524]
[1751426710621,0.82375,2427.6,2427.5,5.66602524]
[1751426710916,0.82381,2427.4,2427.3,6.34362524]
[1751426711115,0.82381,2427.4,2427.3,47.14362524]
[1751426711423,0.82381,2427.4,2427.3,4.04820735]
[1751426711621,0.82388,2427.2,2427.1,6.34362524]
[1751426711815,0.82388,2427.2,2427.1,47.14362524]
[1751426712215,0.82388,2427.2,2427.1,46.46602524]
[1751426712417,0.82388,2427.2,2427.1,9.7112355]
[1751426712723,0.82388,2427.2,2427.1,4.04521026]
[1751426712923,0.82392,2427.1,2427.0,4.04521026]
[1751426713126,0.82392,2427.1,2426.8,0.6612]
[1751426713127,0.82395,2427.0,2426.9,4.04521026]
[1751426713623,0.82399,2426.9,2426.7,7.15126524]
[1751426713823,0.82391,2427.2,2426.8,40.8]
[1751426714021,0.82391,2427.2,2427.0,5.40773978]
[1751426714224,0.82392,2427.1,2427.0,4.58380978]
[1751426714423,0.82392,2427.1,2427.0,6.01670978]
[1751426714827,0.8239,2427.2,2427.0,6.84063978]
[1751426715219,0.82387,2427.3,2427.1,4.86524363]
[1751426715719,0.82398,2426.9,2426.8,4.58599244]
[1751426715920,0.82398,2426.9,2425.9,0.82431]
[1751426715921,37.988,2426.9,2426.2,4.58380978]
[1751426716117,0.6977,2426.8,2426.2,4.58380978]
[1751426716324,0.7205,2427.0,2426.5,4.58380978]
[1751426716533,0.82408,2426.7,2426.5,4.58380978]
[1751426716827,0.7205,2427.0,2426.5,6.74620978]
[1751426717028,0.82407,2426.7,2426.5,6.74620978]
[1751426717427,0.82409,2426.6,2426.5,6.74620978]
[1751426718132,0.82415,2426.5,2426.3,4.58380978]
[1751426718524,0.82415,2426.5,2426.3,6.02280978]
[1751426718725,2.0745,2427.0,2426.3,6.02280978]
[1751426718929,1.354,2426.9,2426.3,6.02280978]
[1751426719132,0.82411,2426.6,2426.4,1.439]
[1751426720529,0.82412,2426.5,2426.4,1.439]
[1751426722232,0.82406,2426.7,2426.4,2.26314]
[1751426722432,0.82406,2426.7,2426.6,4.58380978]
[1751426723528,0.82405,2426.7,2426.6,4.58380978]
[1751426723733,0.824,2426.9,2426.6,5.40786978]
[1751426723938,0.824,2426.9,2426.7,2.0401]
[1751426724238,0.824,2426.9,2426.8,1.3478]
[1751426724838,12.054,2427.5,2426.8,2.1718]
[1751426725034,0.82393,2427.1,2426.9,4.58380978]
[1751426725233,0.82393,2427.1,2427.0,1.3478]
[1751426725731,0.8239,2427.2,2427.0,1.3478]
[1751426726237,2.7876,2427.6,2427.0,1.3478]
[1751426726430,0.82391,2427.1,2427.0,1.3478]
[1751426726939,0.82383,2427.4,2427.1,0.82391]
[1751426727130,0.6898,2427.6,2427.2,5.92690978]
[1751426727433,0.82383,2427.4,2427.3,1.3431]
[1751426728038,0.82383,2427.4,2427.3,42.1431]
[1751426728429,59.308,2427.8,2427.3,42.96694]
[1751426728636,0.82376,2427.6,2427.4,2.1768]
[1751426728934,0.82376,2427.6,2427.5,1.353]
[1751426733740,0.82378,2427.5,2427.4,3.09757619]
[1751426734829,0.82378,2427.5,2427.4,0.7095]
[1751426735031,0.82378,2427.5,2427.4,3.09757619]
[1751426735635,0.82378,2427.5,2427.4,3.92138619]
[1751426736139,0.82378,2427.5,2427.4,5.35678619]
[1751426736339,0.82369,2427.8,2427.4,9.82732051]
[1751426736535,0.82369,2427.8,2427.7,2.38807619]
[1751426737140,0.82365,2427.9,2427.8,0.82367]
[1751426737341,0.82365,2427.9,2427.8,0.6913]
[1751426737835,0.82365,2427.9,2427.8,2.1306]
[1751426739037,0.82365,2427.9,2427.8,0.6913]
[1751426739542,0.82365,2427.9,2427.8,3.07937619]
[1751426741743,0.82371,2427.7,2427.6,2.38807619]
[1751426742340,0.82374,2427.6,2427.5,4.68744627]
[1751426742639,0.82378,2427.5,2427.4,4.02744627]
[1751426742843,0.82381,2427.4,2427.3,4.02744627]
[1751426745344,2.05878,2428.3,2427.3,11.41552246]
[1751426745642,0.82361,2428.0,2427.9,2.38807619]
[1751426749857,0.82368,2427.8,2427.7,2.0941]